[Event "ESP-chT Div I 2018"]
[Site "Linares"]
[Date "2018.08.10"]
[Round "5"]
[White "Argandona Riveiro, Inigo"]
[Black "Vega Gutierrez, Belinda"]
[Result "1-0"]
[ECO "C44"]
[WhiteElo "2415"]
[BlackElo "2165"]
[Annotator "NA"]
[PlyCount "65"]
[EventDate "2018.08.06"]
[EventType "team-tourn"]
[EventCountry "ESP"]
[SourceTitle "playchess.com"]
[Source "ChessBase"]
[SourceQuality "1"]
[TimeControl "40/5400+30:1800+30"]

1. e4 {[%emt 0:02:23]} e5 {[%emt 0:00:00]} 2. Nf3 {[%emt 0:00:02]} Nc6 {[%emt 0:00:00]} 3. Be2 {[%emt 0:00:15]} f5 {[%emt 0:11:10]} 4. d4 {[%emt 0:00:06]} fxe4 {[%emt 0:06:53]} 5. Nxe5 {[%emt 0:00:03]} Qf6 {[%emt 0:00:55]} 6. Nc3 {[%emt 0:08:48]} Bb4 {[%emt 0:00:42]} 7. O-O {[%emt 0:00:52]} Bxc3 {[%emt 0:04:38]} 8. bxc3 {[%emt 0:00:02]} Nxe5 {[%emt 0:00:43]} 9. dxe5 {[%emt 0:00:03]} Qxe5 {[%emt 0:00:12]} 10. Be3 {[%emt 0:11:45]} Nf6 {[%emt 0:00:57]} 11. Bd4 {[%emt 0:04:03]} Qe7 {[%emt 0:01:40]} 12. Bxf6 {[%emt 0:03:26]} Qxf6 {[%emt 0:01:12]} 13. Qd5 {[%emt 0:00:09]} Kd8 {[%emt 0:19:18]} 14. Qxe4 {[%emt 0:01:56]} Re8 {[%emt 0:05:17]} 15. Qd3 {[%emt 0:00:31]} a5 {[%emt 0:04:02]} 16. Bg4 {[%emt 0:04:23]} Ra6 {[%emt 0:10:25]} 17. Rae1 {[%emt 0:15:55]} Rh8 {[%emt 0:05:17]} 18. Re3 {[%emt 0:00:41]} d6 {[%emt 0:07:36]} 19. Bf3 {[%emt 0:05:21]} c6 {[%emt 0:01:44]} 20. c4 {[%emt 0:01:48]} Kc7 {[%emt 0:00:25]} 21. Rfe1 {[%emt 0:01:13]} a4 {[%emt 0:03:32]} 22. Re7+ {[%emt 0:06:18]} Kb8 {[%emt 0:00:05]} 23. Qe3 {[%emt 0:00:15]} Rd8 {[%emt 0:04:15]} 24. h3 {[%emt 0:02:18]} Rd7 {[%emt 0:03:06]} 25. Re6 {[%emt 0:03:25]} Qb2 {[%emt 0:00:58]} 26. Re8 {[%emt 0:00:15]} Qxc2 {[%emt 0:05:06]} 27. Rxc8+ {[%emt 0:02:34]} Kxc8 {[%emt 0:00:03]} 28. Qe8+ {[%emt 0:00:05]} Kc7 {[%emt 0:00:35]} 29. Bg4 {[%emt 0:00:03]} Qxa2 {[%emt 0:02:03]} 30. Qxd7+ {[%emt 0:00:12]} Kb6 {[%emt 0:00:12]} 31. Qxd6 {[%emt 0:02:30]} Qxc4 {[%emt 0:01:36]} 32. Rb1+ {[%emt 0:00:27]} Ka7 {[%emt 0:00:20]} 33. Qc7 {[%emt 0:00:09]} 1-0

[Event "ESP-chT Div I 2018"]
[Site "Linares"]
[Date "2018.08.10"]
[Round "5"]
[White "Bernal Moro, Luis Javier"]
[Black "Andres Gonzalez, Ivan"]
[Result "1-0"]
[ECO "A28"]
[WhiteElo "2413"]
[BlackElo "2349"]
[Annotator "NA"]
[PlyCount "61"]
[EventDate "2018.08.06"]
[EventType "team-tourn"]
[EventCountry "ESP"]
[SourceTitle "playchess.com"]
[Source "ChessBase"]
[SourceQuality "1"]
[TimeControl "40/5400+30:1800+30"]

1. c4 {[%emt 0:00:00]} e5 {[%emt 0:01:13]} 2. Nc3 {[%emt 0:00:00]} Nf6 {[%emt 0:00:42]} 3. Nf3 {[%emt 0:00:00]} Nc6 {[%emt 0:00:22]} 4. e3 {[%emt 0:01:05]} Bb4 {[%emt 0:01:26]} 5. Qc2 {[%emt 0:00:27]} Bxc3 {[%emt 0:00:40]} 6. Qxc3 {[%emt 0:00:26]} Qe7 {[%emt 0:01:25]} 7. b3 {[%emt 0:02:29]} d5 {[%emt 0:07:13]} 8. d4 {[%emt 0:01:36]} Ne4 9. Qb2 {[%emt 0:00:45]} exd4 {[%emt 0:33:30]} 10. cxd5 {[%emt 0:07:29]} Nb4 {[%emt 0:01:54]} 11. Nxd4 {[%emt 0:07:28]} Nxd5 {[%emt 0:01:52]} 12. Bb5+ {[%emt 0:34:04]} Bd7 {[%emt 0:14:09]} 13. Bxd7+ {[%emt 0:01:02]} Qxd7 {[%emt 0:00:13]} 14. Qc2 {[%emt 0:01:50]} f5 {[%emt 0:05:23]} 15. Ba3 {[%emt 0:06:56]} c5 {[%emt 0:03:00]} 16. Ne2 {[%emt 0:12:05]} Qb5 {[%emt 0:02:23]} 17. O-O {[%emt 0:01:08]} O-O {[%emt 0:02:53]} 18. Ng3 {[%emt 0:05:20]} Nxg3 {[%emt 0:03:26]} 19. hxg3 {[%emt 0:00:05]} b6 {[%emt 0:03:15]} 20. Rfd1 {[%emt 0:01:45]} Rad8 {[%emt 0:00:40]} 21. Bb2 {[%emt 0:00:48]} Qb4 {[%emt 0:02:59]} 22. Rd3 {[%emt 0:03:03]} Qe4 {[%emt 0:04:03]} 23. Rad1 {[%emt 0:03:29]} Nf6 {[%emt 0:00:07]} 24. f3 {[%emt 0:00:50]} Qe7 {[%emt 0:02:43]} 25. Rxd8 {[%emt 0:00:23]} Rxd8 {[%emt 0:00:01]} 26. Rxd8+ {[%emt 0:00:13]} Qxd8 {[%emt 0:00:02]} 27. Qxf5 {[%emt 0:00:11]} Qd6 {[%emt 0:00:38]} 28. g4 {[%emt 0:05:44]} Nd5 {[%emt 0:03:06]} 29. Qg5 {[%emt 0:01:40]} Qd7 {[%emt 0:00:28]} 30. Bxg7 {[%emt 0:00:48]} Nb4 {[%emt 0:02:41]} 31. Bc3+ {[%emt 0:00:29]} 1-0

[Event "ESP-chT Div I 2018"]
[Site "Linares"]
[Date "2018.08.10"]
[Round "5"]
[White "Martin Fuentes, Alberto"]
[Black "Vergara Anton, Diego"]
[Result "1/2-1/2"]
[ECO "C00"]
[WhiteElo "2391"]
[BlackElo "2022"]
[Annotator "NA"]
[PlyCount "151"]
[EventDate "2018.08.06"]
[EventType "team-tourn"]
[EventCountry "ESP"]
[SourceTitle "playchess.com"]
[Source "ChessBase"]
[SourceQuality "1"]
[TimeControl "40/5400+30:1800+30"]

1. e4 {[%emt 0:00:29]} e6 {[%emt 0:00:00]} 2. Nf3 {[%emt 0:00:15]} d5 {[%emt 0:00:07]} 3. e5 {[%emt 0:00:04]} c5 {[%emt 0:00:16]} 4. b4 {[%emt 0:00:04]} c4 {[%emt 0:02:07]} 5. c3 {[%emt 0:00:28]} a5 {[%emt 0:05:05]} 6. b5 {[%emt 0:00:52]} Bc5 {[%emt 0:05:47]} 7. d4 {[%emt 0:04:03]} cxd3 {[%emt 0:03:53]} 8. Bxd3 {[%emt 0:00:47]} f5 {[%emt 0:04:06]} 9. O-O {[%emt 0:03:59]} Ne7 {[%emt 0:00:57]} 10. Qe2 {[%emt 0:01:54]} O-O {[%emt 0:00:54]} 11. Nbd2 {[%emt 0:01:41]} a4 {[%emt 0:06:07]} 12. Rb1 {[%emt 0:05:02]} Ng6 {[%emt 0:02:27]} 13. g3 {[%emt 0:02:24]} Nd7 {[%emt 0:01:45]} 14. Re1 {[%emt 0:02:48]} Qc7 {[%emt 0:03:37]} 15. Nf1 {[%emt 0:01:49]} Be7 {[%emt 0:03:57]} 16. h4 {[%emt 0:26:54]} Nc5 {[%emt 0:03:42]} 17. h5 {[%emt 0:01:38]} Nh8 {[%emt 0:00:09]} 18. b6 {[%emt 0:01:31]} Qd8 {[%emt 0:01:21]} 19. c4 {[%emt 0:03:48]} Ne4 {[%emt 0:07:17]} 20. cxd5 {[%emt 0:04:54]} Nc3 {[%emt 0:01:18]} 21. Qb2 {[%emt 0:01:08]} Nxd5 {[%emt 0:01:09]} 22. Bc4 {[%emt 0:00:18]} Qe8 {[%emt 0:08:08]} 23. Bxd5 {[%emt 0:06:18]} exd5 {[%emt 0:00:27]} 24. Qd2 {[%emt 0:00:31]} Be6 {[%emt 0:03:35]} 25. Nd4 {[%emt 0:03:10]} Bc5 {[%emt 0:01:31]} 26. h6 {[%emt 0:04:35]} g6 {[%emt 0:00:51]} 27. Rd1 {[%emt 0:04:51]} Nf7 {[%emt 0:11:00]} 28. Nxe6 {[%emt 0:00:58]} Qxe6 {[%emt 0:00:05]} 29. Qxd5 {[%emt 0:00:16]} Qxe5 {[%emt 0:01:18]} 30. Bf4 {[%emt 0:07:18]} Qxd5 {[%emt 0:03:30]} 31. Rxd5 {[%emt 0:00:03]} Rfc8 {[%emt 0:00:53]} 32. Rd7 {[%emt 0:01:23]} g5 {[%emt 0:00:40]} 33. Be3 {[%emt 0:01:14]} Rab8 {[%emt 0:08:04]} 34. Rc1 {[%emt 0:02:04]} Bf8 {[%emt 0:00:57]} 35. Rxb7 {[%emt 0:00:56]} Bxh6 {[%emt 0:02:10]} 36. Rxc8+ {[%emt 0:01:08]} Rxc8 {[%emt 0:00:03]} 37. Rc7 {[%emt 0:00:10]} Rb8 {[%emt 0:01:17]} 38. Bc5 {[%emt 0:02:09]} Nd8 {[%emt 0:01:03]} 39. b7 {[%emt 0:00:40]} Nxb7 {[%emt 0:00:38]} 40. Ba7 {[%emt 0:00:05]} Re8 {[%emt 0:01:15]} 41. Rxb7 {[%emt 0:30:04]} Re2 {[%emt 0:30:17]} 42. a3 {[%emt 0:00:09]} Bf8 {[%emt 0:00:58]} 43. Be3 {[%emt 0:01:15]} f4 {[%emt 0:01:13]} 44. gxf4 {[%emt 0:00:50]} gxf4 {[%emt 0:00:04]} 45. Bd4 {[%emt 0:01:41]} Bxa3 {[%emt 0:02:26]} 46. Ra7 {[%emt 0:00:15]} Re6 {[%emt 0:00:52]} 47. Rxa4 {[%emt 0:00:46]} Rg6+ {[%emt 0:00:13]} 48. Kh1 {[%emt 0:01:04]} Bd6 {[%emt 0:00:29]} 49. Ra6 {[%emt 0:00:42]} Be7 {[%emt 0:02:20]} 50. Rxg6+ {[%emt 0:00:05]} hxg6 {[%emt 0:00:05]} 51. Kg2 {[%emt 0:00:02]} Kf7 {[%emt 0:00:17]} 52. Kf3 {[%emt 0:00:03]} g5 {[%emt 0:00:15]} 53. Kg4 {[%emt 0:00:05]} Kg6 {[%emt 0:00:06]} 54. f3 {[%emt 0:00:18]} Bd8 {[%emt 0:00:19]} 55. Nd2 {[%emt 0:00:10]} Be7 {[%emt 0:00:16]} 56. Nc4 {[%emt 0:00:04]} Bb4 {[%emt 0:01:08]} 57. Ne5+ {[%emt 0:00:12]} Kh6 {[%emt 0:00:42]} 58. Nf7+ {[%emt 0:00:06]} Kg6 {[%emt 0:00:04]} 59. Nxg5 {[%emt 0:00:04]} Bd6 {[%emt 0:00:57]} 60. Nh3 {[%emt 0:00:07]} Bc7 {[%emt 0:00:36]} 61. Nxf4+ {[%emt 0:00:11]} Kf7 {[%emt 0:00:08]} 62. Kf5 {[%emt 0:00:09]} Bd6 {[%emt 0:00:09]} 63. Ke4 {[%emt 0:00:13]} Bb4 {[%emt 0:00:42]} 64. Nd3 {[%emt 0:00:07]} Bd2 {[%emt 0:00:34]} 65. Be3 {[%emt 0:00:02]} Ba5 {[%emt 0:00:10]} 66. f4 {[%emt 0:00:05]} Bc7 {[%emt 0:00:11]} 67. f5 {[%emt 0:00:23]} Kf6 {[%emt 0:00:23]} 68. Bd4+ {[%emt 0:00:19]} Ke7 {[%emt 0:00:08]} 69. Bf2 {[%emt 0:00:12]} Kf7 {[%emt 0:00:24]} 70. Ne5+ {[%emt 0:00:09]} Kf8 {[%emt 0:00:13]} 71. Kd5 {[%emt 0:00:15]} Bd8 {[%emt 0:00:30]} 72. Ke6 {[%emt 0:00:04]} Kg7 {[%emt 0:00:11]} 73. Bc5 {[%emt 0:00:14]} Bf6 {[%emt 0:00:22]} 74. Be7 {[%emt 0:00:09]} Bxe5 {[%emt 0:00:15]} 75. Kxe5 {[%emt 0:00:03]} Kf7 {[%emt 0:00:06]} 76. Ba3 {[%emt 0:00:03]} 1/2-1/2

[Event "ESP-chT Div I 2018"]
[Site "Linares"]
[Date "2018.08.10"]
[Round "5"]
[White "Granero Roca, Antonio"]
[Black "Rivas Garcia, Victor"]
[Result "1-0"]
[ECO "A80"]
[WhiteElo "2383"]
[BlackElo "2217"]
[Annotator "NA"]
[PlyCount "75"]
[EventDate "2018.08.06"]
[EventType "team-tourn"]
[EventCountry "ESP"]
[SourceTitle "playchess.com"]
[Source "ChessBase"]
[SourceQuality "1"]
[TimeControl "40/5400+30:1800+30"]

1. d4 {[%emt 0:00:00]} f5 {[%emt 0:00:00]} 2. Nf3 {[%emt 0:00:00]} Nf6 {[%emt 0:00:00]} 3. g3 {[%emt 0:00:13]} d6 {[%emt 0:00:00]} 4. Bg2 {[%emt 0:00:38]} g6 {[%emt 0:00:00]} 5. O-O {[%emt 0:00:30]} Bg7 {[%emt 0:00:08]} 6. c3 {[%emt 0:00:33]} O-O {[%emt 0:02:05]} 7. Nbd2 {[%emt 0:00:42]} Nc6 {[%emt 0:02:01]} 8. b4 {[%emt 0:01:42]} a6 {[%emt 0:03:12]} 9. Qb3+ {[%emt 0:01:18]} e6 {[%emt 0:01:01]} 10. a4 {[%emt 0:01:32]} Kh8 {[%emt 0:07:38]} 11. Ba3 {[%emt 0:02:44]} Qe8 {[%emt 0:03:15]} 12. b5 {[%emt 0:03:31]} Na5 {[%emt 0:04:04]} 13. Qb2 {[%emt 0:01:51]} Bd7 {[%emt 0:11:14]} 14. c4 {[%emt 0:04:11]} e5 {[%emt 0:07:53]} 15. Bb4 {[%emt 0:01:15]} b6 {[%emt 0:01:53]} 16. dxe5 {[%emt 0:00:49]} Ne4 {[%emt 0:07:24]} 17. Qc2 {[%emt 0:04:25]} Nc5 {[%emt 0:08:11]} 18. exd6 {[%emt 0:06:15]} cxd6 {[%emt 0:02:37]} 19. Bc3 {[%emt 0:01:39]} Rc8 {[%emt 0:03:05]} 20. Bxg7+ {[%emt 0:01:25]} Kxg7 {[%emt 0:00:11]} 21. Qb2+ {[%emt 0:00:41]} Kg8 {[%emt 0:00:58]} 22. Nd4 {[%emt 0:00:32]} Ne4 {[%emt 0:02:10]} 23. bxa6 {[%emt 0:01:57]} Qe5 {[%emt 0:05:06]} 24. e3 {[%emt 0:05:34]} Nxd2 {[%emt 0:01:17]} 25. Qxd2 {[%emt 0:02:32]} Nxc4 {[%emt 0:00:16]} 26. Qb4 {[%emt 0:01:00]} d5 {[%emt 0:01:04]} 27. Rad1 {[%emt 0:01:52]} Rfd8 {[%emt 0:03:32]} 28. Nf3 {[%emt 0:03:10]} Qb2 {[%emt 0:02:46]} 29. Qxb2 {[%emt 0:02:20]} Nxb2 {[%emt 0:00:07]} 30. Rxd5 {[%emt 0:00:05]} Bc6 {[%emt 0:03:09]} 31. Rxd8+ {[%emt 0:01:13]} Rxd8 {[%emt 0:00:05]} 32. Rc1 {[%emt 0:00:16]} Be4 {[%emt 0:00:38]} 33. a7 {[%emt 0:00:58]} Nxa4 {[%emt 0:01:03]} 34. Nd4 {[%emt 0:00:14]} Nc5 {[%emt 0:01:15]} 35. Bxe4 {[%emt 0:00:20]} fxe4 {[%emt 0:00:13]} 36. Nb5 {[%emt 0:00:06]} Ra8 {[%emt 0:00:57]} 37. Ra1 {[%emt 0:00:19]} Nb3 {[%emt 0:00:08]} 38. Nc7 {[%emt 0:00:51]} 1-0

[Event "ESP-chT Div I 2018"]
[Site "Linares"]
[Date "2018.08.10"]
[Round "5"]
[White "Alonso Alvarez, Aitor"]
[Black "Tejedor Fuente, Enrique"]
[Result "0-1"]
[ECO "B28"]
[WhiteElo "2306"]
[BlackElo "2408"]
[Annotator "NA"]
[PlyCount "74"]
[EventDate "2018.08.06"]
[EventType "team-tourn"]
[EventCountry "ESP"]
[SourceTitle "playchess.com"]
[Source "ChessBase"]
[SourceQuality "1"]
[TimeControl "40/5400+30:1800+30"]

1. e4 {[%emt 0:03:11]} c5 {[%emt 0:02:14]} 2. Nf3 {[%emt 0:00:06]} a6 {[%emt 0:01:05]} 3. c3 {[%emt 0:02:31]} d5 {[%emt 0:03:35]} 4. exd5 {[%emt 0:00:11]} Qxd5 {[%emt 0:00:01]} 5. d4 {[%emt 0:00:16]} Nf6 {[%emt 0:03:25]} 6. Be2 {[%emt 0:02:03]} e6 {[%emt 0:02:40]} 7. O-O {[%emt 0:00:15]} Nc6 {[%emt 0:02:40]} 8. Be3 {[%emt 0:00:16]} cxd4 {[%emt 0:03:13]} 9. cxd4 {[%emt 0:01:51]} Be7 {[%emt 0:00:45]} 10. Nc3 {[%emt 0:00:05]} Qd8 {[%emt 0:01:07]} 11. Rc1 {[%emt 0:01:25]} O-O {[%emt 0:00:18]} 12. a3 {[%emt 0:03:02]} Bd6 {[%emt 0:08:03]} 13. Bg5 {[%emt 0:02:26]} Ne7 {[%emt 0:06:59]} 14. Bd3 {[%emt 0:06:30]} Ng6 {[%emt 0:06:57]} 15. Ne4 {[%emt 0:09:06]} Be7 {[%emt 0:05:12]} 16. Nxf6+ {[%emt 0:03:09]} Bxf6 {[%emt 0:00:39]} 17. Bxf6 {[%emt 0:00:24]} gxf6 {[%emt 0:02:40]} 18. Qd2 {[%emt 0:05:41]} Qd6 {[%emt 0:09:54]} 19. Rc5 {[%emt 0:15:54]} Rd8 {[%emt 0:19:01]} 20. Rfc1 {[%emt 0:05:34]} Bd7 {[%emt 0:07:58]} 21. Qh6 {[%emt 0:04:10]} Qf8 {[%emt 0:00:29]} 22. Qe3 {[%emt 0:09:54]} Rac8 {[%emt 0:01:13]} 23. h4 {[%emt 0:00:11]} Rxc5 {[%emt 0:03:18]} 24. Rxc5 {[%emt 0:00:01]} Bc6 {[%emt 0:01:43]} 25. Be4 {[%emt 0:00:24]} Bxe4 {[%emt 0:02:04]} 26. Qxe4 {[%emt 0:00:03]} b6 {[%emt 0:02:14]} 27. Rc6 {[%emt 0:03:24]} Qh6 {[%emt 0:02:26]} 28. g3 {[%emt 0:05:13]} f5 {[%emt 0:00:52]} 29. Qc2 {[%emt 0:03:14]} f4 {[%emt 0:00:01]} 30. Rxb6 {[%emt 0:07:39]} fxg3 {[%emt 0:01:05]} 31. fxg3 {[%emt 0:00:01]} Qh5 {[%emt 0:00:18]} 32. Kf2 {[%emt 0:01:52]} Qg4 {[%emt 0:01:19]} 33. Qc7 {[%emt 0:01:59]} Rd5 {[%emt 0:00:30]} 34. Rb3 {[%emt 0:04:21]} Rf5 {[%emt 0:00:13]} 35. Qd8+ {[%emt 0:00:18]} Kg7 {[%emt 0:00:04]} 36. Re3 {[%emt 0:00:45]} Qh3 {[%emt 0:01:10]} 37. Ke2 Qg2+ {[%emt 0:00:03]} 0-1

[Event "ESP-chT Div I 2018"]
[Site "Linares"]
[Date "2018.08.10"]
[Round "5"]
[White "Gutierrez Olivares, Daniel"]
[Black "Shvayger, Yuliya"]
[Result "1-0"]
[ECO "A20"]
[WhiteElo "2297"]
[BlackElo "2390"]
[Annotator "NA"]
[PlyCount "67"]
[EventDate "2018.08.06"]
[EventType "team-tourn"]
[EventCountry "ESP"]
[SourceTitle "playchess.com"]
[Source "ChessBase"]
[SourceQuality "1"]
[TimeControl "40/5400+30:1800+30"]

1. c4 {[%emt 0:00:00]} e5 {[%emt 0:00:01]} 2. d3 {[%emt 0:00:18]} Nc6 {[%emt 0:02:01]} 3. g3 {[%emt 0:02:43]} g6 {[%emt 0:00:08]} 4. Bg2 {[%emt 0:00:58]} Bg7 {[%emt 0:00:03]} 5. e3 {[%emt 0:01:48]} Nge7 {[%emt 0:03:12]} 6. Nc3 {[%emt 0:01:56]} d6 {[%emt 0:02:48]} 7. Nge2 {[%emt 0:00:48]} Bg4 {[%emt 0:01:50]} 8. Qd2 {[%emt 0:08:38]} Qd7 {[%emt 0:01:54]} 9. Nd5 {[%emt 0:04:06]} O-O {[%emt 0:03:42]} 10. Nec3 {[%emt 0:01:43]} Nd8 {[%emt 0:08:47]} 11. Nxe7+ {[%emt 0:05:47]} Qxe7 {[%emt 0:00:10]} 12. h3 {[%emt 0:03:28]} Be6 {[%emt 0:01:06]} 13. O-O {[%emt 0:01:12]} Qd7 {[%emt 0:03:37]} 14. Kh2 {[%emt 0:01:03]} c6 {[%emt 0:00:13]} 15. b3 {[%emt 0:00:48]} f5 {[%emt 0:02:58]} 16. f4 {[%emt 0:03:54]} d5 {[%emt 0:06:04]} 17. cxd5 {[%emt 0:14:53]} cxd5 {[%emt 0:00:38]} 18. Ba3 {[%emt 0:01:35]} Re8 {[%emt 0:01:22]} 19. fxe5 {[%emt 0:03:29]} Bxe5 {[%emt 0:00:21]} 20. Rac1 {[%emt 0:01:55]} Nc6 {[%emt 0:05:59]} 21. d4 {[%emt 0:02:24]} Bg7 {[%emt 0:01:53]} 22. Na4 {[%emt 0:00:42]} b6 {[%emt 0:04:08]} 23. Nb2 {[%emt 0:01:00]} Bf7 {[%emt 0:02:10]} 24. Rc3 {[%emt 0:01:34]} a5 {[%emt 0:13:57]} 25. Rfc1 {[%emt 0:01:36]} Na7 {[%emt 0:01:55]} 26. Rc7 {[%emt 0:02:05]} Qe6 {[%emt 0:00:08]} 27. Nd3 {[%emt 0:03:00]} Qxe3 {[%emt 0:23:32]} 28. Qxe3 {[%emt 0:11:46]} Rxe3 {[%emt 0:00:03]} 29. Rxf7 {[%emt 0:06:28]} Kxf7 {[%emt 0:00:02]} 30. Rc7+ {[%emt 0:01:54]} Kf6 {[%emt 0:00:45]} 31. Nf4 {[%emt 0:00:37]} Re4 {[%emt 0:02:35]} 32. Nxd5+ {[%emt 0:04:45]} Ke6 {[%emt 0:00:02]} 33. Bxe4 {[%emt 0:01:54]} fxe4 {[%emt 0:00:27]} 34. Nxb6 {[%emt 0:00:35]} 1-0

[Event "ESP-chT Div I 2018"]
[Site "Linares"]
[Date "2018.08.10"]
[Round "5"]
[White "Aranaz Murillo, Amalia"]
[Black "Rodrigo Yanguas, Maria"]
[Result "1-0"]
[ECO "E68"]
[WhiteElo "2227"]
[BlackElo "2062"]
[Annotator "NA"]
[PlyCount "67"]
[EventDate "2018.08.06"]
[EventType "team-tourn"]
[EventCountry "ESP"]
[SourceTitle "playchess.com"]
[Source "ChessBase"]
[SourceQuality "1"]
[TimeControl "40/5400+30:1800+30"]

1. Nf3 {[%emt 0:00:00]} Nf6 {[%emt 0:00:00]} 2. c4 {[%emt 0:00:00]} g6 {[%emt 0:00:00]} 3. g3 {[%emt 0:00:00]} Bg7 {[%emt 0:00:07]} 4. Bg2 {[%emt 0:00:00]} O-O {[%emt 0:00:11]} 5. O-O {[%emt 0:00:23]} d6 {[%emt 0:00:14]} 6. d4 {[%emt 0:00:45]} Nbd7 {[%emt 0:00:43]} 7. Nc3 {[%emt 0:00:42]} e5 {[%emt 0:00:30]} 8. e4 {[%emt 0:00:21]} exd4 {[%emt 0:00:43]} 9. Nxd4 {[%emt 0:00:11]} a6 {[%emt 0:01:34]} 10. h3 {[%emt 0:02:48]} Re8 {[%emt 0:00:41]} 11. Re1 {[%emt 0:01:47]} Ne5 {[%emt 0:06:21]} 12. b3 {[%emt 0:02:22]} Rb8 {[%emt 0:01:09]} 13. a4 {[%emt 0:01:50]} a5 {[%emt 0:03:51]} 14. Ra2 {[%emt 0:01:45]} Nfd7 {[%emt 0:07:48]} 15. Rd2 {[%emt 0:07:06]} Nc5 {[%emt 0:03:54]} 16. f4 {[%emt 0:12:18]} Ned7 {[%emt 0:09:46]} 17. Ncb5 {[%emt 0:06:38]} Bf8 {[%emt 0:10:29]} 18. Bb2 {[%emt 0:23:13]} c6 {[%emt 0:05:06]} 19. Nc3 {[%emt 0:00:34]} Qb6 {[%emt 0:00:57]} 20. Kh2 {[%emt 0:00:04]} Bg7 {[%emt 0:04:50]} 21. Ba1 {[%emt 0:07:28]} Nf8 {[%emt 0:10:26]} 22. Ndb5 {[%emt 0:03:08]} cxb5 {[%emt 0:13:31]} 23. Rxd6 {[%emt 0:00:16]} Qc7 {[%emt 0:00:51]} 24. Nxb5 {[%emt 0:00:13]} Qe7 {[%emt 0:00:21]} 25. Bxg7 {[%emt 0:00:30]} Kxg7 {[%emt 0:03:36]} 26. Qd4+ {[%emt 0:00:06]} Kg8 {[%emt 0:00:36]} 27. Qxc5 {[%emt 0:00:06]} Ne6 {[%emt 0:01:01]} 28. Qd5 {[%emt 0:07:10]} h5 {[%emt 0:00:32]} 29. f5 {[%emt 0:01:39]} Nf8 {[%emt 0:05:22]} 30. f6 {[%emt 0:00:39]} Qe5 {[%emt 0:01:03]} 31. Qxe5 {[%emt 0:00:05]} Rxe5 {[%emt 0:00:02]} 32. Rd8 {[%emt 0:00:07]} Rc5 {[%emt 0:01:43]} 33. Red1 {[%emt 0:00:47]} Ra8 {[%emt 0:01:35]} 34. Rxf8+ {[%emt 0:00:17]} 1-0

[Event "ESP-chT Div I 2018"]
[Site "Linares"]
[Date "2018.08.10"]
[Round "5"]
[White "Garcia-Castany Musellas, Gal la"]
[Black "Cano Sanchez, Josue"]
[Result "0-1"]
[ECO "C07"]
[WhiteElo "2203"]
[BlackElo "2312"]
[Annotator "NA"]
[PlyCount "104"]
[EventDate "2018.08.06"]
[EventType "team-tourn"]
[EventCountry "ESP"]
[SourceTitle "playchess.com"]
[Source "ChessBase"]
[SourceQuality "1"]
[TimeControl "40/5400+30:1800+30"]

1. e4 {[%emt 0:00:00]} e6 {[%emt 0:00:18]} 2. d4 {[%emt 0:00:00]} d5 {[%emt 0:00:06]} 3. Nd2 {[%emt 0:00:04]} c5 {[%emt 0:00:12]} 4. Ngf3 {[%emt 0:00:58]} cxd4 {[%emt 0:03:50]} 5. Nxd4 {[%emt 0:00:28]} Nf6 {[%emt 0:01:37]} 6. exd5 {[%emt 0:03:29]} Qxd5 {[%emt 0:05:24]} 7. Nb5 {[%emt 0:03:53]} Qc6 {[%emt 0:18:55]} 8. Nc4 {[%emt 0:10:23]} Bc5 {[%emt 0:19:52]} 9. Nbd6+ {[%emt 0:00:30]} Ke7 {[%emt 0:01:06]} 10. Bf4 {[%emt 0:36:37]} Rd8 {[%emt 0:19:58]} 11. Nxc8+ {[%emt 0:19:17]} Qxc8 {[%emt 0:00:40]} 12. Bd3 {[%emt 0:02:06]} Nc6 {[%emt 0:00:11]} 13. O-O {[%emt 0:01:04]} Nb4 {[%emt 0:00:24]} 14. Ne5 {[%emt 0:01:22]} Bd4 {[%emt 0:04:56]} 15. Qd2 {[%emt 0:02:47]} Nxd3 {[%emt 0:04:22]} 16. Nxd3 {[%emt 0:00:07]} Qc4 {[%emt 0:00:50]} 17. Qa5 {[%emt 0:03:39]} Kf8 {[%emt 0:02:11]} 18. Be5 {[%emt 0:06:05]} Kg8 {[%emt 0:03:32]} 19. Bxd4 {[%emt 0:02:30]} Rxd4 {[%emt 0:00:22]} 20. Rac1 {[%emt 0:01:10]} b6 {[%emt 0:02:45]} 21. Qa3 {[%emt 0:00:04]} a5 {[%emt 0:02:59]} 22. Ne5 {[%emt 0:00:23]} Qc7 {[%emt 0:00:52]} 23. Nf3 {[%emt 0:00:33]} Rc4 {[%emt 0:00:36]} 24. c3 {[%emt 0:01:08]} Rc8 {[%emt 0:00:31]} 25. Rcd1 {[%emt 0:00:10]} b5 {[%emt 0:00:56]} 26. Qd6 {[%emt 0:02:33]} Nd5 {[%emt 0:00:36]} 27. Qxc7 {[%emt 0:00:42]} R4xc7 {[%emt 0:00:22]} 28. Nd4 {[%emt 0:00:47]} b4 {[%emt 0:00:25]} 29. Nb5 {[%emt 0:00:30]} Rd7 {[%emt 0:03:21]} 30. cxb4 {[%emt 0:01:04]} axb4 {[%emt 0:00:09]} 31. Rc1 {[%emt 0:00:12]} Rdd8 {[%emt 0:00:22]} 32. a3 {[%emt 0:00:34]} bxa3 {[%emt 0:01:02]} 33. Nxa3 {[%emt 0:00:33]} Rb8 {[%emt 0:00:10]} 34. Nc4 {[%emt 0:00:30]} Nf4 {[%emt 0:00:17]} 35. Rc2 {[%emt 0:00:17]} h5 {[%emt 0:00:36]} 36. g3 {[%emt 0:00:10]} Nd5 {[%emt 0:00:20]} 37. Ne5 {[%emt 0:00:40]} Rb6 {[%emt 0:00:40]} 38. Nc6 {[%emt 0:00:15]} Rc8 {[%emt 0:00:23]} 39. Rfc1 {[%emt 0:00:12]} Kh7 {[%emt 0:00:27]} 40. Nd4 {[%emt 0:00:54]} Rxc2 {[%emt 0:00:07]} 41. Rxc2 {[%emt 0:30:00]} Rb4 {[%emt 0:30:18]} 42. Nc6 {[%emt 0:00:13]} Rb6 {[%emt 0:00:35]} 43. Ne5 {[%emt 0:00:20]} Rb7 {[%emt 0:00:19]} 44. Kg2 {[%emt 0:00:59]} g5 {[%emt 0:00:17]} 45. Nd3 {[%emt 0:01:09]} Rb3 {[%emt 0:00:34]} 46. Nc5 {[%emt 0:00:09]} Rb5 {[%emt 0:00:30]} 47. Nd3 {[%emt 0:00:30]} Kg7 {[%emt 0:00:05]} 48. b4 {[%emt 0:01:20]} Kf6 {[%emt 0:00:29]} 49. Ra2 {[%emt 0:00:21]} Rb6 {[%emt 0:00:20]} 50. Rb2 {[%emt 0:00:21]} Kf5 {[%emt 0:00:09]} 51. Kf3 {[%emt 0:00:44]} e5 {[%emt 0:00:17]} 52. Re2 {[%emt 0:00:43]} e4+ {[%emt 0:00:20]} 0-1